bitfinex/quotes_SOLUSD_20250806
["timestamp","ask_amount","ask_price","bid_price","bid_amount"]
[1754459343205,64.4743326,164.63,164.62,0.06]
[1754459343699,15.10621557,164.62,164.61,0.06]
[1754459344013,41.82351833,164.62,164.61,0.06]
[1754459344923,63.54351833,164.62,164.61,0.06]
[1754459345289,64.5202373,164.62,164.61,0.06]
[1754459345508,69.61872252,164.62,164.61,0.06]
[1754459346211,32.13250695,164.62,164.61,0.06]
[1754459346375,69.61872252,164.62,164.61,0.06]
[1754459346581,64.5202373,164.62,164.61,0.06]
[1754459349511,26.05454054,164.62,164.61,0.77]
[1754459349680,48.75402173,164.62,164.61,0.77]
[1754459349884,64.5202373,164.62,164.61,0.06]
[1754459350084,41.10621557,164.59,164.58,0.2]
[1754459350294,25.10621557,164.58,164.56,0.06]
[1754459350518,15.10621557,164.56,164.55,0.06]
[1754459350675,19.18163977,164.56,164.55,0.06]
[1754459350881,44.93692735,164.56,164.55,0.06]
[1754459351189,41.10621557,164.54,164.53,0.06]
[1754459351383,81.2815687,164.54,164.53,0.06]
[1754459351596,90.13013287,164.54,164.53,0.06]
[1754459351918,49.43236771,164.54,164.53,0.06]
[1754459352204,89.47013287,164.54,164.53,0.06]
[1754459352412,94.56096268,164.54,164.53,0.06]
[1754459352580,89.47013287,164.54,164.53,0.06]
[1754459352784,94.48682603,164.54,164.53,0.06]
[1754459353003,99.57765584,164.54,164.53,0.06]
[1754459353719,100.23765584,164.54,164.53,0.06]
[1754459354421,95.14682603,164.54,164.53,0.06]
[1754459354722,94.48682603,164.54,164.53,0.06]
[1754459354879,99.56915947,164.54,164.53,0.06]
[1754459355076,94.48682603,164.54,164.53,0.06]
[1754459355275,81.16775347,164.54,164.53,0.06]
[1754459355481,94.48682603,164.54,164.53,0.06]
[1754459356292,49.09020394,164.54,164.51,0.06]
[1754459356612,4.0754242,164.53,164.51,0.06]
[1754459356823,21.72,164.52,164.51,0.06]
[1754459357004,25.7954242,164.52,164.51,0.06]
[1754459357190,33.85669349,164.52,164.51,0.06]
[1754459357392,33.85669349,164.52,164.51,0.77]
[1754459357804,29.78126929,164.52,164.51,14.08907256]
[1754459358520,29.78126929,164.52,164.51,20.16773039]
[1754459359422,8.06126929,164.52,164.51,20.16773039]
[1754459361219,8.06126929,164.52,164.51,6.84865783]
[1754459361406,8.06126929,164.52,164.51,20.16773039]
[1754459362417,8.06126929,164.52,164.51,6.84865783]
[1754459362618,8.06126929,164.52,164.51,20.16773039]
[1754459363099,8.06126929,164.52,164.51,14.08907256]
[1754459363286,29.78126929,164.52,164.51,14.08907256]
[1754459363482,29.78126929,164.52,164.51,0.77]
[1754459363685,29.78126929,164.52,164.51,0.06]
[1754459364442,29.78126929,164.52,164.51,0.77]
[1754459364634,29.78126929,164.52,164.51,0.06]
[1754459365135,29.78126929,164.52,164.51,0.77]
[1754459366204,8.06126929,164.52,164.51,20.16773039]
[1754459367702,21.72,164.59,164.51,35.36437497]
[1754459367930,29.44727172,164.59,164.57,13.31907256]
[1754459368314,7.72727172,164.59,164.58,0.71]
[1754459368509,7.72727172,164.59,164.58,6.78607242]
[1754459368833,7.72727172,164.59,164.58,20.10514498]
[1754459369448,7.72727172,164.59,164.56,13.31907256]
[1754459369737,7.72727172,164.59,164.56,14.02907256]
[1754459370535,7.75727172,164.59,164.56,20.10551797]
[1754459371346,7.75727172,164.59,164.57,14.02907256]
[1754459371509,7.75727172,164.59,164.57,0.71]
[1754459371840,7.75727172,164.59,164.58,0.71]
[1754459372053,7.75727172,164.59,164.57,13.31907256]
[1754459372414,7.75727172,164.59,164.56,6.07644541]
[1754459372645,7.75727172,164.59,164.58,0.71]
[1754459373048,7.75727172,164.59,164.57,14.38934634]
[1754459373632,7.75727172,164.59,164.57,15.10934634]
[1754459373834,7.75727172,164.59,164.57,9.03297441]
[1754459374123,7.75727172,164.59,164.57,8.31297441]
[1754459374324,7.75727172,164.59,164.57,14.38938755]
[1754459374525,7.75727172,164.59,164.58,15.10904683]
[1754459378544,0.03,164.61,164.58,53.16271546]
[1754459378847,0.03,164.61,164.6,8.31297441]
[1754459379232,0.03,164.61,164.6,9.03297441]
[1754459379629,0.03,164.61,164.6,8.31297441]
[1754459379828,0.03,164.61,164.6,9.03297441]
[1754459380570,0.03,164.61,164.6,15.10830855]
[1754459382954,0.03,164.61,164.59,6.07568736]
[1754459383119,0.03,164.61,164.59,14.38866177]
[1754459383318,0.68,164.61,164.59,14.38866177]
[1754459383755,0.68,164.61,164.6,8.31297441]
[1754459384048,0.03,164.61,164.6,9.03297441]
[1754459385054,0.03,164.61,164.6,15.10830855]
[1754459385571,0.03,164.61,164.6,104.20830855]
[1754459386239,0.03,164.61,164.6,95.89533414]
[1754459386439,0.03,164.61,164.6,104.20830855]
[1754459390154,0.03,164.61,164.6,14.38830855]
[1754459390347,0.68,164.61,164.59,14.38865456]
[1754459390685,0.65,164.6,164.59,14.38865456]
[1754459390836,0.68,164.61,164.59,14.38865456]
[1754459391656,0.03,164.61,164.6,8.31297441]
[1754459392048,0.03,164.61,164.6,14.38830855]
[1754459392248,0.68,164.61,164.6,14.38830855]
[1754459392452,0.68,164.61,164.59,14.44858025]
[1754459392647,0.03,164.61,164.59,14.44858025]
[1754459392850,0.65,164.6,164.59,14.44858025]
[1754459393151,0.65,164.6,164.59,0.06]
[1754459393668,8.96297441,164.6,164.59,0.06]
[1754459393847,28.13422915,164.6,164.59,0.06]
[1754459394047,34.20956329,164.6,164.59,0.06]
[1754459394361,42.5225377,164.6,164.59,0.06]
[1754459394578,39.29086225,164.6,164.59,0.06]
[1754459395089,47.60383666,164.6,164.59,0.06]
[1754459395382,39.29086225,164.6,164.59,0.06]
[1754459395884,24.18464668,164.6,164.59,0.06]
[1754459396889,15.87167227,164.6,164.59,0.06]
[1754459397053,24.18464668,164.6,164.59,0.06]
[1754459397255,45.88464668,164.6,164.59,0.06]
[1754459399882,26.0,164.58,164.57,0.06]
[1754459400084,38.37801358,164.58,164.57,0.06]
[1754459400272,39.02801358,164.58,164.57,0.06]
[1754459400585,51.76503917,164.58,164.57,0.06]
[1754459400893,60.07801358,164.58,164.57,0.06]
[1754459401376,60.72801358,164.58,164.57,0.06]
[1754459401558,60.07801358,164.58,164.57,0.06]
[1754459401762,51.76503917,164.58,164.57,0.06]
[1754459402598,60.07801358,164.58,164.57,0.06]
[1754459404003,51.76503917,164.58,164.57,0.06]
[1754459404208,51.76503917,164.58,164.57,9.05297441]
[1754459404209,4.06503917,164.58,164.57,9.05297441]
[1754459404371,4.06503917,164.6,164.57,9.05297441]
[1754459404722,4.06503917,164.6,164.59,8.31297441]
[1754459405019,4.06503917,164.6,164.59,8.99297441]
[1754459405178,4.06503917,164.6,164.59,0.68]
[1754459405370,4.06503917,164.6,164.59,8.99297441]
[1754459406297,4.06503917,164.6,164.59,15.06867767]
[1754459408502,4.06503917,164.6,164.59,6.75570326]
[1754459408687,4.06503917,164.6,164.59,15.06867767]
[1754459410116,0.03,164.61,164.59,15.06867767]
[1754459410287,0.03,164.61,164.6,8.99297441]
[1754459410618,4.09503917,164.61,164.6,8.99297441]
[1754459410814,0.03,164.61,164.6,0.68]
[1754459411119,4.09503917,164.61,164.6,8.99297441]
[1754459411422,0.03,164.61,164.6,8.99297441]
[1754459411611,4.09503917,164.61,164.6,8.99297441]
[1754459411804,0.03,164.61,164.6,8.99297441]
[1754459412012,4.09503917,164.61,164.6,8.99297441]
[1754459412319,0.03,164.61,164.6,15.06830855]
[1754459412617,4.09503917,164.61,164.6,15.06830855]
[1754459412801,0.03,164.61,164.6,15.06830855]
[1754459413002,4.09503917,164.61,164.6,6.75533414]
[1754459413247,4.09503917,164.61,164.6,15.06830855]
[1754459414318,4.09503917,164.61,164.6,14.38830855]
[1754459414991,4.09503917,164.61,164.59,97.41297441]
[1754459415220,4.06503917,164.6,164.59,89.1]
[1754459415429,4.72503917,164.6,164.59,89.1]
[1754459416304,4.06503917,164.6,164.59,103.48867767]
[1754459416836,4.06503917,164.6,164.59,89.1]
[1754459417034,4.72503917,164.6,164.57,14.44933555]
[1754459417242,4.06503917,164.59,164.57,14.44933555]
[1754459417423,4.06503917,164.58,164.57,0.06]
[1754459417627,4.72503917,164.58,164.57,0.06]
[1754459417825,13.03801358,164.58,164.57,0.06]
[1754459418026,33.23373487,164.58,164.57,0.06]
[1754459418328,39.30980729,164.58,164.57,0.06]
[1754459418637,39.34177681,164.58,164.57,0.06]
[1754459419236,34.23815769,164.58,164.51,0.06]
[1754459419432,8.31297441,164.54,164.51,0.06]
[1754459419612,4.08289529,164.53,164.51,0.06]
[1754459419943,4.74289529,164.53,164.51,0.06]
[1754459420146,30.74289529,164.52,164.51,0.06]
[1754459420516,30.08289529,164.52,164.51,0.06]
[1754459420717,4.08289529,164.52,164.51,9.05297441]
[1754459421025,4.08289529,164.54,164.51,9.05297441]
[1754459421224,4.08289529,164.54,164.52,8.99297441]
[1754459421545,4.08289529,164.55,164.53,15.07089333]
[1754459421747,4.07996608,164.57,164.54,8.99297441]
[1754459421922,4.07996608,164.56,164.53,6.07791892]
[1754459422120,21.7,164.58,164.55,8.99297441]
[1754459422320,4.07991916,164.57,164.55,8.99297441]
[1754459422522,4.07991916,164.56,164.54,8.31297441]
[1754459422834,4.07991916,164.55,164.53,15.07089333]
[1754459423036,4.07991916,164.57,164.53,15.07089333]
[1754459423225,4.07991916,164.56,164.54,8.31297441]
[1754459423536,4.07991916,164.55,164.54,14.39026553]
[1754459423748,4.07991916,164.56,164.54,6.07729112]
[1754459423940,4.07991916,164.55,164.52,15.07126276]
[1754459424146,4.07991916,164.57,164.52,6.75828835]
[1754459424441,4.07991916,164.56,164.54,8.31297441]
[1754459424648,4.07991916,164.55,164.54,8.31297441]
[1754459424952,4.07991916,164.56,164.54,8.31297441]
[1754459425454,4.07991916,164.56,164.53,0.68]
[1754459425651,4.07991916,164.56,164.53,8.31297441]
[1754459425852,4.07991916,164.56,164.52,6.75828835]
[1754459426021,4.73991916,164.55,164.52,6.07828835]
[1754459426219,4.73991916,164.57,164.52,6.75828835]
[1754459426556,4.73991916,164.56,164.53,8.31297441]
[1754459426723,4.07991916,164.55,164.53,8.31297441]
[1754459427354,0.66,164.56,164.53,14.39080765]
[1754459427645,4.73991916,164.56,164.53,14.39080765]
[1754459427958,0.66,164.56,164.53,14.39080765]
[1754459428134,13.05289357,164.55,164.51,8.372974]
[1754459428324,12.39289357,164.54,164.51,0.06]
[1754459428527,8.31297441,164.52,164.51,0.06]
[1754459428727,12.39289357,164.52,164.51,0.06]
[1754459429025,13.05289357,164.52,164.51,0.06]
[1754459429226,8.97297441,164.52,164.51,0.06]
[1754459429530,30.73991916,164.52,164.51,0.06]
[1754459429736,4.07991916,164.52,164.51,0.06]
[1754459430253,4.07991916,164.53,164.51,0.74]
[1754459431143,4.07991916,164.52,164.51,0.06]
[1754459431347,4.07991916,164.53,164.51,0.06]
[1754459431522,4.07991916,164.52,164.51,0.06]
[1754459431722,8.97297441,164.52,164.51,0.06]
[1754459431951,13.05289357,164.52,164.51,0.06]
[1754459432367,8.97297441,164.52,164.51,0.06]
[1754459432550,4.73991916,164.52,164.51,0.06]
[1754459432749,13.05289357,164.52,164.51,0.06]
[1754459432950,39.05289357,164.52,164.51,0.06]
[1754459433352,30.73991916,164.52,164.51,0.06]
[1754459433881,30.07991916,164.52,164.51,0.06]
[1754459434241,4.07991916,164.52,164.51,0.06]
[1754459434472,48.4,164.54,164.51,0.77]
[1754459434473,4.07991916,164.53,164.51,0.77]
[1754459434657,4.07991916,164.52,164.51,0.77]
[1754459434856,48.4,164.54,164.51,0.77]
[1754459434857,4.07991916,164.53,164.51,0.77]
[1754459435053,4.07991916,164.52,164.51,9.08297441]
[1754459435254,4.07991916,164.53,164.51,9.08297441]
[1754459435577,4.07991916,164.52,164.51,9.08297441]
[1754459435756,4.07991916,164.53,164.51,15.16163224]
[1754459435961,4.07991916,164.52,164.51,15.16163224]
[1754459436167,4.07991916,164.53,164.51,15.16163224]
[1754459436368,4.07991916,164.52,164.51,15.16163224]
[1754459436557,4.07991916,164.53,164.51,15.16163224]
[1754459436752,4.07991916,164.52,164.51,20.16027541]
[1754459437079,13.31161758,164.52,164.51,0.06]
[1754459437254,44.09153674,164.52,164.51,0.06]
[1754459437448,30.77991916,164.52,164.51,0.06]
[1754459440259,44.09153674,164.52,164.51,0.06]
[1754459442364,30.77991916,164.52,164.51,0.06]
[1754459442570,4.07991916,164.52,164.51,0.06]
[1754459442972,25.77991916,164.52,164.51,0.06]
[1754459443303,26.47991916,164.52,164.51,0.06]
[1754459443595,39.79153674,164.52,164.51,0.06]
[1754459444063,45.86982509,164.52,164.51,0.06]
[1754459444781,15.10621557,164.51,164.49,0.2]
[1754459445086,65.09153674,164.5,164.49,0.2]
[1754459445261,65.79153674,164.5,164.49,0.2]
[1754459445456,52.47991916,164.5,164.49,0.2]
[1754459445656,65.79153674,164.5,164.49,0.2]
[1754459445857,30.07991916,164.5,164.49,0.2]
[1754459446082,25.77991916,164.5,164.49,0.2]
[1754459446457,52.47991916,164.5,164.49,0.2]
[1754459446998,71.87056409,164.5,164.49,0.2]
[1754459449811,86.97677966,164.5,164.49,0.2]
[1754459449998,73.66516208,164.5,164.49,0.2]
[1754459450171,86.97677966,164.5,164.49,0.2]
[1754459452694,60.97677966,164.5,164.49,0.2]
[1754459453673,47.66516208,164.5,164.49,0.2]
[1754459453977,66.07616847,164.5,164.49,0.2]
[1754459456796,61.09455312,164.5,164.49,0.2]
[1754459458319,55.99516431,164.5,164.49,0.2]
[1754459458813,61.08941554,164.5,164.49,0.2]
[1754459459011,55.99516431,164.5,164.49,0.2]
[1754459459803,41.10621557,164.48,164.47,0.06]
[1754459459999,81.29590349,164.48,164.47,0.06]
[1754459460197,81.29274553,164.48,164.47,0.06]
[1754459460700,60.10676343,164.48,164.47,0.06]
[1754459460908,60.10676343,164.48,164.47,0.77]
[1754459461500,60.10676343,164.48,164.47,0.06]
[1754459461704,51.7767612,164.48,164.47,0.77]
[1754459461906,60.10676343,164.48,164.47,0.06]
[1754459462152,51.7767612,164.48,164.47,0.06]
[1754459462296,60.10676343,164.48,164.47,0.77]
[1754459465333,51.7767612,164.48,164.47,0.77]
[1754459465501,4.0767612,164.48,164.47,0.77]
[1754459465706,25.7767612,164.48,164.47,0.77]
[1754459468210,34.10676343,164.48,164.47,0.06]
[1754459468539,34.10676343,164.48,164.47,0.77]
[1754459469031,34.10676343,164.48,164.47,0.06]
[1754459470351,25.7767612,164.48,164.47,0.06]
[1754459471727,34.81676343,164.48,164.47,0.06]
[1754459471923,40.89652996,164.48,164.47,0.06]
[1754459472449,61.09869703,164.48,164.47,0.06]
[1754459473321,87.09869703,164.48,164.47,0.06]
[1754459476241,82.00274553,164.48,164.46,0.2]
[1754459476432,17.51891116,164.47,164.46,0.2]
[1754459476638,18.22891116,164.47,164.46,0.2]
[1754459478251,15.97904512,164.47,164.46,0.2]
[1754459478441,24.30904735,164.47,164.46,0.2]
[1754459479256,19.19689962,164.47,164.46,0.2]
[1754459479434,10.86689739,164.47,164.45,0.06]
[1754459479631,39.22125831,164.46,164.45,0.06]
[1754459480076,30.89125608,164.46,164.45,0.77]
[1754459480358,39.22125831,164.46,164.45,0.77]
[1754459480656,25.7767612,164.46,164.45,0.77]
[1754459480838,4.0767612,164.46,164.45,6.85087564]
[1754459481038,25.7767612,164.46,164.45,15.18087787]
[1754459481269,25.7767612,164.46,164.45,6.85087564]
[1754459481427,25.7767612,164.46,164.45,15.18087787]
[1754459481861,0.03,164.49,164.45,30.38306698]
[1754459482057,0.03,164.49,164.48,8.33000223]
[1754459482236,4.12114808,164.49,164.48,8.33000223]
[1754459482444,4.12114808,164.49,164.48,0.71]
[1754459482742,13.16115031,164.49,164.45,6.85087564]
[1754459482929,8.33000223,164.47,164.45,0.06]
[1754459483240,30.03000223,164.46,164.45,0.06]
[1754459483668,30.03000223,164.46,164.45,0.77]
[1754459483867,25.79235631,164.46,164.45,0.77]
[1754459484761,25.79235631,164.46,164.45,9.10000223]
[1754459485434,25.79235631,164.46,164.45,0.77]
[1754459486244,25.79235631,164.46,164.45,6.85087564]
[1754459486751,25.79471183,164.46,164.45,6.85087564]
[1754459487250,25.79471183,164.46,164.45,15.18087787]
[1754459488070,25.79471183,164.46,164.45,95.95087564]
[1754459488243,25.79471183,164.46,164.45,104.28087787]
[1754459488443,4.09471183,164.46,164.44,0.2]
[1754459488659,4.09471183,164.46,164.4,1e-08]
[1754459488660,48.73522286,164.45,164.4,1e-08]
[1754459488871,15.10621557,164.38,164.32,0.2]
[1754459489171,10.0,164.34,164.32,0.2]
[1754459489468,26.0,164.29,164.23,0.71]
[1754459489671,8.33000223,164.24,164.2,0.71]
[1754459489882,26.0,164.21,164.15,8.33000223]
[1754459490049,8.33000223,164.22,164.14,21.32326063]
[1754459490247,8.33000223,164.21,164.14,21.32326063]
[1754459490570,8.33000223,164.21,164.13,29.1753059]
[1754459490571,8.33000223,164.18,164.15,0.71]
[1754459490736,13.37525564,164.17,164.15,0.71]
[1754459490936,22.06,164.2,164.16,0.71]
[1754459490937,13.37525564,164.18,164.16,0.71]
[1754459491140,22.06,164.2,164.17,0.71]
[1754459491342,13.37525564,164.18,164.17,0.71]
[1754459491538,26.0,164.2,164.13,6.09270181]
[1754459491757,13.37525564,164.18,164.13,6.09270181]
[1754459491956,22.08,164.2,164.14,0.71]
[1754459492177,13.37525564,164.19,164.14,0.71]
[1754459492588,22.08,164.2,164.13,6.09270181]
[1754459492804,22.08,164.2,164.15,0.71]
[1754459493108,22.08,164.2,164.03,37.3409633]
[1754459493109,13.37525564,164.16,164.03,37.3409633]
[1754459493265,37.20621557,164.15,164.1,0.71]
[1754459493690,22.1,164.15,164.11,0.66]
[1754459493991,13.37525564,164.12,164.09,0.66]
[1754459494201,22.1,164.11,164.07,0.66]
[1754459494362,22.1,164.11,164.08,0.66]
[1754459494559,35.47525564,164.11,164.08,0.66]
[1754459494786,22.1,164.11,164.08,0.66]
[1754459494998,22.1,164.11,164.05,0.66]
[1754459495409,13.37525564,164.09,164.05,0.66]
[1754459495604,13.37525564,164.06,164.02,0.66]
[1754459495894,22.14,164.05,164.03,13.37525564]
[1754459496094,22.14,164.04,164.02,13.37525564]
[1754459496296,22.14,164.04,164.03,13.37525564]
[1754459496503,21.41647398,164.2,164.03,13.37525564]
[1754459496798,26.0,164.14,164.12,13.37525564]
[1754459496991,48.14,164.13,164.12,13.37525564]
[1754459497195,15.10621557,164.19,164.1,0.66]
[1754459497423,44.301052,164.2,164.14,13.37525564]
[1754459497424,15.10621557,164.17,164.14,13.37525564]
[1754459497630,15.10621557,164.17,164.07,26.0]
[1754459497931,15.10621557,164.17,164.11,13.37525564]
[1754459497932,1.63780003,164.16,164.11,13.37525564]
[1754459498124,15.10621557,164.11,164.03,0.66]
[1754459498424,13.37525564,164.08,164.03,26.66]
[1754459498625,22.18,164.1,164.02,13.37525564]
[1754459498626,13.37525564,164.07,164.02,13.37525564]
[1754459498826,22.18,164.1,163.98,21.34406634]
[1754459498827,13.37525564,164.05,164.0,0.66]
[1754459499001,22.18,164.04,164.0,13.37525564]
[1754459499198,22.18,164.04,163.92,45.05866829]
[1754459499199,13.37525564,164.02,163.97,6.09863508]
[1754459499528,35.55525564,164.04,163.97,6.09863508]
[1754459499743,0.81,164.07,164.0,13.37525564]
[1754459499914,0.81,164.07,164.03,13.37525564]
[1754459499915,22.2,164.06,164.03,13.37525564]
[1754459500106,0.81,164.07,164.04,13.37525564]
[1754459500439,0.81,164.07,164.06,13.37525564]
[1754459500651,0.81,164.07,164.05,0.66]
[1754459500815,0.81,164.07,164.06,13.37525564]
[1754459501022,0.7,164.17,164.06,14.03525564]
[1754459501212,26.0,164.15,164.12,13.37525564]
[1754459501534,13.37525564,164.13,164.05,0.66]
[1754459501706,13.37525564,164.08,164.02,61.37411675]
[1754459501911,22.2,164.07,164.0,0.72]
[1754459502117,35.59525564,164.06,164.01,13.37525564]
[1754459502328,22.22,164.06,164.01,0.66]
[1754459502539,13.37525564,164.1,164.05,13.37525564]
[1754459502719,7.61480365,164.09,164.06,0.66]
[1754459502915,7.61480365,164.09,164.08,13.37525564]
[1754459503151,7.61480365,164.09,164.08,14.03525564]
[1754459503708,7.61480365,164.09,164.08,0.66]
[1754459503937,7.61480365,164.09,164.08,20.12984364]
[1754459504640,15.80621557,164.17,164.08,41.91472795]
[1754459504809,22.22,164.13,164.08,21.99105801]
[1754459505008,22.22,164.13,164.12,19.92366994]
[1754459505206,22.92,164.13,164.08,21.33105801]
[1754459505427,22.22,164.13,164.12,19.92366994]
[1754459505709,5.17500013,164.15,164.12,5.04572651]
[1754459505933,27.39500013,164.15,164.14,26.01603012]
[1754459506247,9.61317224,164.15,164.14,26.01603012]
[1754459506405,5.17500013,164.15,164.14,26.67603012]
[1754459507225,9.61141271,164.15,164.14,6.09236018]
[1754459507667,0.7,164.22,164.14,41.90693057]
[1754459507976,0.7,164.22,164.19,26.01417484]
[1754459507977,22.26,164.2,164.19,26.01417484]
[1754459508756,0.7,164.22,164.19,26.01417484]
[1754459508757,22.26,164.21,164.19,6.0905049]
[1754459510550,0.7,164.22,164.19,6.0905049]
[1754459510753,22.26,164.21,164.19,6.0905049]
[1754459510968,22.26,164.21,164.19,26.01417484]
[1754459512869,7.27814197,164.23,164.2,26.67380392]
[1754459513164,22.26,164.22,164.21,0.66]
[1754459514038,29.49814197,164.23,164.21,0.66]
[1754459514239,29.49814197,164.23,164.22,20.58366994]
[1754459515070,29.49814197,164.23,164.22,26.01306221]
[1754459516865,29.49814197,164.23,164.22,6.08939227]
[1754459517060,29.49814197,164.23,164.22,19.92366994]
[1754459518386,30.19814197,164.23,164.21,26.01343304]
[1754459518558,29.49814197,164.23,164.21,26.01343304]
[1754459518756,29.49814197,164.23,164.22,19.92366994]
[1754459519167,29.49814197,164.23,164.21,26.01343304]
[1754459519481,29.49814197,164.23,164.21,6.0897631]
[1754459519689,5.14406193,164.22,164.21,6.0897631]
[1754459520076,25.06773187,164.22,164.16,15.88846847]
[1754459520388,4.44406193,164.21,164.17,19.92366994]
[1754459520684,0.7,164.2,164.17,26.01491681]
[1754459520982,22.2,164.19,164.17,26.01491681]
[1754459521360,22.2,164.19,164.17,6.09124687]
[1754459521775,22.2,164.19,164.17,26.01491681]
[1754459521961,22.2,164.19,164.17,6.09124687]
[1754459522287,22.2,164.19,164.17,26.01491681]
[1754459522696,22.2,164.19,164.18,19.92366994]
[1754459522880,26.62993318,164.19,164.18,20.58366994]
[1754459523212,26.63149079,164.19,164.18,20.58366994]
[1754459523510,26.63149079,164.19,164.18,19.92366994]
[1754459523709,4.45149079,164.19,164.18,19.92366994]
[1754459523893,22.2,164.19,164.18,19.92366994]
[1754459524095,26.65149079,164.19,164.18,20.62366994]
[1754459524272,26.65149079,164.19,164.18,26.0145458]
[1754459524787,26.65149079,164.19,164.18,6.09087586]
[1754459525175,26.65149079,164.19,164.18,19.45737095]
[1754459525801,26.65945136,164.19,164.18,6.09087586]
[1754459525988,26.0,164.16,164.15,6.09198903]
[1754459526185,26.0,164.16,164.13,6.09273137]
[1754459526186,44.48594645,164.16,164.13,6.09273137]
[1754459526386,40.84594645,164.15,164.12,0.06]
[1754459526673,4.45945136,164.14,164.12,0.06]
[1754459526876,4.45945136,164.13,164.12,0.76]
[1754459527090,4.45945136,164.13,164.12,14.12649509]
[1754459527787,4.45945136,164.13,164.12,13.42649509]
[1754459527976,4.45945136,164.13,164.12,14.12649509]
[1754459528470,4.45945136,164.13,164.12,20.21959769]
[1754459528674,22.4,164.14,164.12,35.4523542]
[1754459528876,22.4,164.14,164.13,14.06649509]
[1754459529486,22.4,164.15,164.13,14.06649509]
[1754459529694,22.4,164.16,164.14,13.36649509]
[1754459529892,22.4,164.16,164.15,13.36649509]
[1754459530204,22.4,164.16,164.15,14.06649509]
[1754459530530,41.10621557,164.21,164.15,20.15848412]
[1754459530687,26.44453546,164.2,164.16,0.7]
[1754459530883,22.4,164.2,164.19,13.36649509]
[1754459531083,26.44403474,164.2,164.19,13.36649509]
[1754459531311,4.04403474,164.2,164.19,14.06649509]
[1754459531487,22.4,164.2,164.19,0.7]
[1754459531680,26.44403474,164.2,164.19,14.06649509]
[1754459532314,26.44403474,164.2,164.19,13.36649509]
[1754459532523,26.44403474,164.2,164.19,19.45699999]
[1754459532724,26.44403474,164.2,164.19,20.15699999]
[1754459533244,22.4,164.2,164.19,19.45699999]
[1754459533453,26.46310279,164.2,164.19,6.0905049]
[1754459533609,26.46310279,164.2,164.19,19.45699999]
[1754459534931,4.06310279,164.2,164.19,19.45699999]
[1754459535136,6.35790014,164.22,164.19,20.15699999]
[1754459535137,22.38,164.21,164.19,20.15699999]
[1754459535322,22.38,164.21,164.2,14.06649509]
[1754459535713,6.35790014,164.22,164.2,14.06649509]
[1754459535914,6.35790014,164.22,164.21,14.06649509]
[1754459536727,6.35790014,164.22,164.21,19.45625819]
[1754459536939,0.66,164.27,164.21,35.38066596]
[1754459537138,22.36,164.26,164.24,13.36649509]
[1754459538463,23.02,164.26,164.24,13.36649509]
[1754459538662,22.36,164.26,164.24,13.36649509]
[1754459538853,22.36,164.26,164.25,6.08828006]
[1754459539355,26.0,164.26,164.25,6.08828006]
[1754459539555,48.34,164.26,164.25,6.08828006]
[1754459540064,49.0,164.26,164.25,6.08828006]
[1754459540438,49.0,164.26,164.23,13.36649509]
[1754459540656,49.0,164.26,164.24,13.36649509]
[1754459540657,26.0,164.26,164.24,13.36649509]
[1754459540843,26.0,164.26,164.22,21.31287296]
[1754459540844,8.04305127,164.29,164.26,6.08790941]
[1754459541163,30.36305127,164.29,164.28,13.36649509]
[1754459542734,30.36305127,164.29,164.28,19.45366333]
[1754459542942,8.04305127,164.29,164.28,20.15366333]
[1754459543868,8.04305127,164.29,164.28,19.45366333]
[1754459547450,8.04305127,164.29,164.28,6.08716824]
[1754459547856,8.04305127,164.29,164.28,13.36649509]
[1754459548639,8.04305127,164.29,164.27,13.36649509]
[1754459548841,8.04305127,164.29,164.26,15.21977352]
[1754459549048,12.11488982,164.29,164.26,28.58626861]
[1754459549382,8.04305127,164.29,164.27,13.36649509]
[1754459549770,8.04305127,164.29,164.27,6.0875388]
[1754459550072,0.66,164.28,164.27,6.0875388]
[1754459550667,4.73475848,164.28,164.27,6.0875388]
[1754459550857,4.07475848,164.28,164.27,6.0875388]